fUSD/lending_fUSD_20240105
["ID","MTS","AMOUNT","RATE_DAILY","PERIOD"]
[310248038,1704419440401,-811.32058433,0.00023,2]
[310248039,1704419440413,-1090.0,0.00023,2]
[310248040,1704419441271,-289.97622102,0.00022999,2]
[310248041,1704419441328,-2318.80580568,0.00022999,2]
[310248042,1704419441338,-170043.21063664,0.00023,2]
[310248045,1704419445536,202.41885335,0.00022885,15]
[310248046,1704419445933,-21821.91075143,0.00022999,2]
[310248047,1704419445942,-37150.22339367,0.00023,2]
[310248048,1704419445954,-19312.60486338,0.00023,2]
[310248122,1704419446252,-1203.1000001,0.00023,2]
[310248148,1704419446318,-10254.62822497,0.00023,2]
[310248154,1704419446330,-538103.79708129,0.00023,2]
[310248183,1704419446448,-383.78400877,0.00022999,2]
[310248186,1704419446458,-718.95766477,0.00023,2]
[310248189,1704419446471,-251.4456035,0.00023,2]
[310248200,1704419446519,-2003.71439049,0.00023,2]
[310248205,1704419446533,-2133.5,0.00023,2]
[310248208,1704419446546,-4384.31552068,0.00023,2]
[310248211,1704419446557,-328.8000002,0.00023,2]
[310248214,1704419446569,-16734.07223483,0.00023,2]
[310248219,1704419446582,-3849.28978414,0.00023,2]
[310248224,1704419446609,-889.85597636,0.00023,2]
[310248229,1704419446622,-848.27999238,0.00023,2]
[310248231,1704419446635,-569.49231762,0.00023,2]
[310248233,1704419446647,-10203.39386864,0.00023,2]
[310248236,1704419446657,-647.14504288,0.00023,2]
[310248239,1704419446668,-936.02595153,0.00023,2]
[310248242,1704419446678,-2000.0,0.00023,2]
[310248245,1704419446688,-200.0,0.00023,2]
[310248248,1704419446698,-2000.0,0.00023,2]
[310248251,1704419446708,-200.0,0.00023,2]
[310248254,1704419446718,-2000.0,0.00023,2]
[310248257,1704419446730,-200.0,0.00023,2]
[310248260,1704419446739,-2000.0,0.00023,2]
[310248263,1704419446749,-200.0,0.00023,2]
[310248266,1704419446759,-732.44972791,0.00023002,2]
[310248269,1704419446769,-874.25424925,0.0002301,2]
[310248272,1704419446779,-161.37,0.0002306,2]
[310248275,1704419446788,-1168.31671123,0.00023086,2]
[310248278,1704419446798,-824.86,0.00023124,2]
[310248280,1704419446808,-999.4475,0.0002313,2]
[310248282,1704419446817,-157.39,0.00023132,2]
[310248285,1704419446827,-2000.0,0.0002323,2]
[310248287,1704419446839,-200.0,0.0002323,2]
[310248289,1704419446849,-2000.0,0.0002323,2]
[310248291,1704419446861,-200.0,0.0002323,2]
[310248293,1704419446870,-2000.0,0.0002323,2]
[310248295,1704419446883,-200.0,0.0002323,2]
[310248297,1704419446893,-2000.0,0.0002323,2]
[310248299,1704419446902,-200.0,0.0002323,2]
[310248301,1704419446912,-161.37,0.00023252,2]
[310248303,1704419446921,-972.30585541,0.00023271,2]
[310248305,1704419446931,-153.45,0.00023322,2]
[310248307,1704419446940,-800.0,0.00023425,2]
[310248309,1704419446949,-157.39,0.00023458,2]
[310248310,1704419446959,-2000.0,0.00023462,2]
[310248312,1704419446968,-200.0,0.00023462,2]
[310248313,1704419446978,-2000.0,0.00023462,2]
[310248314,1704419446987,-200.0,0.00023462,2]
[310248315,1704419446997,-2000.0,0.00023462,2]
[310248316,1704419447008,-200.0,0.00023462,2]
[310248318,1704419447017,-2000.0,0.00023697,2]
[310248320,1704419447027,-200.0,0.00023697,2]
[310248322,1704419447037,-2000.0,0.00023697,2]
[310248324,1704419447047,-200.0,0.00023697,2]
[310248325,1704419447056,-2000.0,0.00023697,2]
[310248326,1704419447065,-200.0,0.00023697,2]
[310248327,1704419447075,-157.39,0.00023783,2]
[310248328,1704419447085,-2000.0,0.00023934,2]
[310248329,1704419447095,-200.0,0.00023934,2]
[310248330,1704419447106,-2000.0,0.00023934,2]
[310248331,1704419447115,-200.0,0.00023934,2]
[310248332,1704419447124,-2000.0,0.00023934,2]
[310248333,1704419447134,-200.0,0.00023934,2]
[310248334,1704419447143,-155.0,0.00024,2]
[310248335,1704419447152,-824.86,0.00024102,2]
[310248336,1704419447161,-157.39,0.00024108,2]
[310248337,1704419447171,-324.09905249,0.0002442,2]
[310248338,1704419447180,-157.39,0.00024434,2]
[310248339,1704419447190,-250.0,0.00024658,2]
[310248340,1704419447199,-462.4,0.00024696,2]
[310248341,1704419447208,-157.39,0.00024759,2]
[310248342,1704419447219,-371.7,0.00024765,2]
[310248343,1704419447228,-971.01,0.00024971,2]
[310248344,1704419447238,-672.0,0.00024973,2]
[310248345,1704419447247,-482.276,0.00025,2]
[310248346,1704419447257,-1580.15293572,0.00025,2]
[310248347,1704419447266,-320.37003899,0.00025,2]
[310248348,1704419447275,-506.89562327,0.00025,2]
[310248349,1704419447285,-302.30426435,0.00025,2]
[310248350,1704419447295,-155.0,0.00025,2]
[310248351,1704419447304,-2798.29281852,0.00025,2]
[310248352,1704419447314,-189.9614115,0.00025,2]
[310248353,1704419447323,-210.1621425,0.00025,2]
[310248354,1704419447333,-824.86,0.0002508,2]
[310248355,1704419447343,-157.39,0.00025084,2]
[310248356,1704419447355,-2067.90273436,0.0002509,2]
[310248357,1704419447365,-157.39,0.00025409,2]
[310248358,1704419447375,-157.39,0.00025735,2]
[310248359,1704419447385,-209.12,0.00025786,2]
[310248360,1704419447395,-16914.78645965,0.00025786,2]
[310248361,1704419447409,-3085.20354035,0.00025786,2]
[310248362,1704419447420,-1427.99645965,0.00025786,2]
[310248363,1704419447434,-5720.67354035,0.00025786,2]
[310248364,1704419447444,-971.01,0.00025881,2]
[310248365,1704419447454,-2064.0,0.000259,2]
[310248366,1704419447464,-23056.0,0.000259,2]
[310248367,1704419447474,-3395.7229591,0.00026,2]
[310248368,1704419447485,-200.49814884,0.00026,2]
[310248369,1704419447495,-150.91,0.00026015,2]
[310248370,1704419447506,-824.86,0.00026059,2]
[310248371,1704419447516,-157.39,0.0002606,2]
[310248372,1704419447527,-150.0,0.00026079,2]
[310248373,1704419447537,-1610.09,0.00026118,2]
[310248374,1704419447548,-899.99,0.00026129,2]
[310248375,1704419447558,-167.01,0.0002613,2]
[310248376,1704419447569,-1687.99,0.00026132,2]
[310248377,1704419447579,-157.39,0.00026385,2]
[310248378,1704419447590,-150.91,0.00026387,2]
[310248380,1704419447600,-1836.01393983,0.000264,2]
[310248382,1704419447613,-157.39,0.00026711,2]
[310248383,1704419447623,-150.91,0.00026758,2]
[310248384,1704419447633,-971.01,0.0002679,2]
[310248385,1704419447644,-170.6,0.00026924,2]
[310248386,1704419447655,-250.0,0.00027,3]
[310248387,1704419447664,-371.7,0.00027029,2]
[310248390,1704419447675,-824.86,0.00027037,2]
[310248393,1704419447686,-199.0,0.000271,5]
[310248397,1704419447696,-150.91,0.0002713,2]
[310248400,1704419447706,-920.59571367,0.00027347,2]
[310248403,1704419447715,-150.0,0.00027397,2]
[310248405,1704419447727,-155.0,0.00027397,2]
[310248407,1704419447737,-200.0,0.00027397,5]
[310248409,1704419447748,-3523.0,0.00027397,4]
[310248411,1704419447758,-9297.59,0.00027397,2]
[310248414,1704419447769,-250.0,0.00027397,2]
[310248417,1704419447779,-185.0,0.00027397,4]
[310248420,1704419447789,-3489.76,0.00027397,2]
[310248422,1704419447800,-29968.06,0.00027397,2]
[310248423,1704419447810,-424.0,0.00027397,4]
[310248424,1704419447821,-203.5578057,0.000274,2]
[310248425,1704419447834,-462.4,0.00027441,2]
[310248426,1704419447845,-170.6,0.00027462,2]
[310248427,1704419447857,-7966.25446681,0.000275,2]
[310248428,1704419447867,-150.91,0.00027502,2]
[310248429,1704419447879,-3489.76,0.00027556,2]
[310248430,1704419447889,-2164.9120594,0.00027699,6]
[310248431,1704419447900,-971.01,0.00027699,2]
[310248432,1704419447910,-3489.76,0.00027714,2]
[310248433,1704419447920,-672.0,0.00027747,2]
[310248434,1704419447930,-3489.76,0.00027872,2]
[310248435,1704419447940,-150.91,0.00027873,2]
[310248436,1704419447951,-151.26518396,0.00027945,2]
[310248437,1704419447961,-200.0,0.00027945,5]
[310248438,1704419447971,-2713.58,0.00027945,2]
[310248439,1704419447982,-1594.68,0.00027945,2]
[310248440,1704419447992,-1368.07505839,0.00028,2]
[310248441,1704419448002,-687.0,0.00028,2]
[310248442,1704419448012,-170.6,0.00028001,2]
[310248443,1704419448022,-824.86,0.00028016,2]
[310248444,1704419448031,-3489.76,0.0002803,2]
[310248445,1704419448041,-3489.76,0.00028189,2]
[310248446,1704419448051,-150.91,0.00028245,2]
[310248447,1704419448061,-3489.76,0.00028347,2]
[310248448,1704419448072,-158.24905036,0.00028384,2]
[310248449,1704419448082,-200.0,0.00028493,5]
[310248450,1704419448092,-3489.76,0.00028505,2]
[310248451,1704419448104,-170.6,0.00028539,2]
[310248452,1704419448114,-971.01,0.00028608,2]
[310248453,1704419448124,-150.91,0.00028617,2]
[310248454,1704419448134,-3489.76,0.00028664,2]
[310248455,1704419448144,-155.0,0.00028767,2]
[310248456,1704419448155,-3489.76,0.00028822,2]
[310248457,1704419448165,-824.86,0.00028994,2]
[310248458,1704419448176,-200.0,0.00029,2]
[310248459,1704419448186,-128970.79256008,0.00029,2]
[310248460,1704419448198,-300.0,0.00029,3]
[310248461,1704419448207,-201.57866695,0.00029041,5]
[310248462,1704419448217,-170.6,0.00029078,2]
[310248463,1704419448228,-371.7,0.00029293,2]
[310248464,1704419448238,-14158.47369321,0.000295,2]
[310248465,1704419448249,-971.01,0.00029518,2]
[310248466,1704419448259,-170.6,0.00029616,2]
[310248467,1704419448269,-3805.827,0.000297,2]
[310248468,1704419448280,-195.21826193,0.000298,2]
[310248469,1704419448290,-199452.7236945,0.000298,2]
[310248470,1704419448304,-22471.50000001,0.000298,2]
[310248471,1704419448317,-3565.5,0.000298,2]
[310248472,1704419448330,-4307.45,0.000298,2]
[310248473,1704419448349,-3401.57417098,0.000298,2]
[310248474,1704419448982,-2123.15308437,0.000298,2]
[310248475,1704419448994,-6871.89178167,0.000298,2]
[310248476,1704419449006,-7801.17347078,0.000298,2]
[310248477,1704419449018,-115646.44800303,0.000298,2]
[310248478,1704419449030,-1855.01182381,0.000298,2]
[310248479,1704419449041,-375.499,0.000298,2]
[310248480,1704419449057,-259.75973813,0.000298,2]
[310248481,1704419449069,-814.3194646,0.000298,2]
[310248482,1704419449161,-6163.68052864,0.000298,2]
[310248483,1704419449174,-335.11056716,0.000298,2]
[310248484,1704419449195,-10966.6180025,0.000298,2]
[310248487,1704419514441,5432.65111215,0.00015,10]
[310248488,1704419520734,1829.6437,0.00022401,2]
[310248489,1704419535195,155.0,0.00022401,2]
[310248490,1704419553201,184.8393936,0.00022401,2]
[310248491,1704419649701,499.999999,0.0002,2]
[310248494,1704419699398,502.59106457,0.00022,2]
[310248602,1704419836150,394.30871151,0.00021918,2]
[310248638,1704420368810,328.07,0.00021481,2]
[310248654,1704420556944,385.0,0.0003,120]
[310248693,1704420631832,-493.26131547,0.00022647,2]
[310248695,1704420631841,-2140.03006782,0.00022648,2]
[310248696,1704420631851,-156.90034262,0.00022668,2]
[310248698,1704420631860,-156.90034262,0.00022714,2]
[310248700,1704420631869,-150.0,0.00022727,2]
[310248702,1704420631878,-16165.90793147,0.00022728,2]
[310248705,1704420631898,-336.4822786,0.00022728,2]
[310248708,1704420631909,-1012.23348766,0.00022728,2]
[310248710,1704420631920,-1103.90650941,0.00022728,2]
[310248712,1704420631931,-543.30887796,0.00022728,2]
[310248714,1704420631943,-3407.02625035,0.00022728,2]
[310248721,1704420632009,-1331.13466455,0.00022728,2]
[310248722,1704420632019,-156.90034262,0.00022761,2]
[310248723,1704420632029,-359.81452549,0.00022768,4]
[310248724,1704420632038,-3302.6733,0.000228,2]
[310248726,1704420632047,-994.3276,0.000228,2]
[310248728,1704420632057,-156.90034262,0.00022807,2]
[310248730,1704420632066,-528.27,0.00022807,2]
[310248732,1704420632075,-156.90034262,0.00022854,2]
[310248734,1704420632084,-940.50428966,0.00022894,2]
[310248737,1704420632096,-186.34121034,0.00022894,2]
[310248739,1704420632105,-123.65878966,0.00022894,2]
[310248741,1704420632117,-457.02121034,0.00022894,2]
[310248743,1704420632127,-499.99,0.00022894,2]
[310248745,1704420632136,-466.43167752,0.00022899,2]
[310248747,1704420632145,-3557.86728771,0.000229,2]
[310248776,1704420637848,-7594.20542914,0.000229,2]
[310248777,1704420637964,-33289.83768315,0.000229,2]
[310248778,1704420637973,-179.48443055,0.000229,2]
[310248779,1704420637983,-5086.51551683,0.000229,2]
[310248780,1704420637992,-156.17120439,0.000229,2]
[310248781,1704420638024,-19.64949505,0.000229,2]
[310248782,1704420638034,-156.90034262,0.000229,2]
[310248783,1704420638045,-293.62418355,0.000229,2]
[310248784,1704420638055,-205.56,0.00022944,2]
[310248785,1704420638074,-2635.58356038,0.00022998,2]
[310248786,1704420638086,-155.7602467,0.00022998,2]
[310248787,1704420638097,-283.8349486,0.00022998,2]
[310248788,1704420638109,-196.99401232,0.00022998,2]
[310248789,1704420638120,-2597.31877855,0.00022998,2]
[310248790,1704420638131,-516.14136859,0.00022999,2]
[310248791,1704420638143,-1021.32,0.00022999,2]
[310248792,1704420638153,-150.0,0.00022999,2]
[310248793,1704420638162,-150.0,0.00022999,2]
[310248794,1704420638172,-150.0,0.00022999,2]
[310248795,1704420638182,-150.0,0.00022999,2]
[310248796,1704420638191,-150.0,0.00022999,2]
[310248797,1704420638200,-150.0,0.00022999,2]
[310248798,1704420638210,-150.0,0.00022999,2]
[310248799,1704420638219,-150.0,0.00022999,2]
[310248800,1704420638229,-150.0,0.00022999,2]
[310248801,1704420638239,-150.0,0.00022999,2]
[310248802,1704420638249,-150.0,0.00022999,2]
[310248803,1704420638259,-150.0,0.00022999,2]
[310248804,1704420638268,-150.0,0.00022999,2]
[310248805,1704420638277,-150.0,0.00022999,2]
[310248806,1704420638286,-150.0,0.00022999,2]
[310248807,1704420638296,-9180636.84235643,0.00023,2]
[310248813,1704420638622,-685702.55390616,0.00023,2]
[310248814,1704420638641,-578914.19288253,0.00023,2]
[310248822,1704420640481,-361.97698334,0.00023,2]
[310248823,1704420640493,-764.56552154,0.00023,2]
[310248824,1704420641275,-437.92461,0.00023,2]
[310248825,1704420641287,-686.21,0.00023,2]
[310248855,1704420644374,-2140.03006782,0.00022999,2]
[310248856,1704420644385,-252.06276582,0.00023,2]
[310248857,1704420644399,-8483.73046673,0.00023,2]
[310248858,1704420644412,-1079.59205831,0.00023,2]
[310248859,1704420644426,-10151.21251074,0.00023,2]
[310248860,1704420644511,-1576985.1488112,0.00023,2]
[310248861,1704420644635,-3700.67092135,0.00023,2]
[310248862,1704420644649,-1320.93427577,0.00023,2]
[310248863,1704420644662,-3709.7111176,0.00023,2]
[310248864,1704420644675,-395.27179376,0.00023,2]
[310248865,1704420644705,-2372.07892865,0.00023,2]
[310248992,1704420650153,-352.21787111,0.000229,2]
[310248994,1704420650164,-226.42086683,0.00023,2]
[310248998,1704420650222,-714997.42537659,0.00023,2]
[310248999,1704420650236,-34372.73934413,0.00023,2]
[310249019,1704420817962,408.78,0.00022177,2]
[310249020,1704420916269,205.56,0.00022343,2]
[310249022,1704421304965,500.0,0.00022177,2]
[310249043,1704421832003,-493.26131547,0.00022536,2]
[310249047,1704421832013,-515.94408178,0.00022537,2]
[310249052,1704421832062,-435.18,0.00022537,2]
[310249054,1704421832076,-823.78883687,0.00022537,2]
[310249073,1704421832355,-300.0,0.00022537,2]
[310249074,1704421832368,-533.86910805,0.00022537,2]
[310249075,1704421832378,-1200.35308665,0.00022538,2]
[310249076,1704421832387,-1837.0,0.00022542,2]
[310249077,1704421832397,-311.66,0.00022592,2]
[310249078,1704421832406,-169.75599894,0.00022799,2]
[310249079,1704421832415,-150.0,0.00022899,2]
[310249080,1704421832425,-149.16180636,0.000229,2]
[310249083,1704421832446,-22628.70959364,0.000229,2]
[310249084,1704421832455,-437.3124,0.000229,2]
[310249085,1704421832465,-28979.7786,0.000229,2]
[310249086,1704421832474,-190.29143628,0.000229,2]
[310249087,1704421832484,-6452.16932473,0.00022997,2]
[310249088,1704421832494,-389.23172507,0.00022998,2]
[310249089,1704421832504,-516.14136859,0.00022998,2]
[310249090,1704421832513,-2635.58356038,0.00022998,2]
[310249091,1704421832523,-155.7602467,0.00022998,2]
[310249092,1704421832532,-196.99401232,0.00022998,2]
[310249093,1704421832542,-283.8349486,0.00022998,2]
[310249094,1704421832553,-2126.54601799,0.00022998,2]
[310249095,1704421832562,-156.49589536,0.00022998,2]
[310249096,1704421832572,-518.0,0.00022998,2]
[310249097,1704421832581,-4125.82,0.00022998,2]
[310249098,1704421832591,-1021.32,0.00022998,2]
[310249099,1704421832601,-4376.39607999,0.00022999,2]
[310249100,1704421832611,-565140.19181153,0.00023,2]
[310249101,1704421832623,-419.88124136,0.00023,2]
[310249102,1704421832634,-457.63969015,0.00023,2]
[310249103,1704421832669,-266.569,0.00023,2]
[310249104,1704421832681,-1033.7,0.00023,2]
[310249105,1704421832710,-1127.49151474,0.00023,2]
[310249109,1704421838024,-34456.86568259,0.00023,2]
[310249110,1704421838140,-9942.88021448,0.00023,2]
[310249111,1704421838205,-6928784.57894395,0.00023,2]
[310249112,1704421838215,-1985506.39631916,0.00023,2]
[310249113,1704421838225,-150.0,0.00023058,2]
[310249114,1704421838235,-746.66910475,0.00023215,2]
[310249115,1704421838245,-181.11,0.00023509,2]
[310249116,1704421838254,-290.84,0.00023778,2]
[310249117,1704421838264,-815.04,0.00023789,2]
[310249118,1704421838274,-190.29143624,0.00023871,2]
[310249119,1704421838283,-182.96,0.00024027,2]
[310249120,1704421838293,-5593.25,0.00024064,2]
[310249121,1704421838302,-315.52,0.0002411,2]
[310249122,1704421838311,-498.35,0.0002427,2]
[310249123,1704421838321,-250.0,0.00024658,2]
[310249124,1704421838330,-190.29143624,0.00024843,2]
[310249125,1704421838341,-311.66,0.00024856,2]
[310249126,1704421838351,-347.89262648,0.00025,2]
[310249127,1704421838360,-1580.1889945,0.00025,2]
[310249128,1704421838369,-430.0,0.00025,2]
[310249129,1704421838379,-525.0,0.00025167,2]
[310249130,1704421838388,-498.35,0.00025248,2]
[310249131,1704421838397,-2145.0,0.000254,2]
[310249132,1704421838405,-24768.0,0.000258,2]
[310249133,1704421838415,-190.29143624,0.00025814,2]
[310249134,1704421838425,-150.0,0.00026079,2]
[310249135,1704421838434,-1621.14379787,0.00026226,5]
[310249136,1704421838444,-498.35,0.00026226,2]
[310249137,1704421838453,-184.96,0.00026275,2]
[310249138,1704421838466,-1282.45870646,0.000264,2]
[310249139,1704421838475,-172.66,0.00026424,2]
[310249140,1704421838484,-815.04,0.00026762,2]
[310249141,1704421838494,-190.29143624,0.00026786,3]
[310249142,1704421838503,-250.0,0.00027,3]
[310249144,1704421838514,-156.45,0.00027014,2]
[310249146,1704421838523,-311.66,0.0002712,2]
[310249148,1704421838532,-498.35,0.00027205,2]
[310249149,1704421838541,-156.45,0.0002726,2]
[310249151,1704421838551,-155.0,0.00027397,2]
[310249153,1704421838560,-325.22221659,0.00027397,5]
[310249155,1704421838569,-250.0,0.00027397,2]
[310249156,1704421838578,-174.13,0.00027397,2]
[310249158,1704421838588,-500.0,0.000274,2]
[310249160,1704421838597,-604.21721138,0.000275,4]
[310249162,1704421838606,-156.45,0.00027505,2]
[310249163,1704421838616,-174.13,0.00027556,2]
[310249164,1704421838625,-174.13,0.00027714,2]
[310249166,1704421838634,-156.45,0.00027751,2]
[310249168,1704421838643,-190.29143624,0.00027757,3]
[310249170,1704421838652,-174.13,0.00027872,2]
[310249172,1704421838662,-2261.31,0.00027945,2]
[310249174,1704421838671,-1667.55,0.00027945,2]
[310249175,1704421838680,-156.45,0.00027997,2]
[310249177,1704421838692,-686.69000892,0.00028,2]
[310249179,1704421838701,-174.13,0.0002803,2]
[310249181,1704421838710,-498.35,0.00028183,2]
[310249183,1704421838720,-174.13,0.00028189,2]
[310249184,1704421838729,-156.45,0.00028242,2]
[310249186,1704421838738,-174.13,0.00028347,2]
[310249188,1704421838747,-156.45,0.00028488,2]
[310249190,1704421838756,-174.13,0.00028505,2]
[310249192,1704421838766,-1117.56831173,0.00028509,2]
[310249193,1704421838775,-500.0,0.00028548,2]
[310249195,1704421838784,-174.13,0.00028664,2]
[310249197,1704421838793,-190.29143624,0.00028729,4]
[310249198,1704421838803,-156.45,0.00028733,2]
[310249199,1704421838812,-155.0,0.00028767,2]
[310249200,1704421838821,-174.13,0.00028822,2]
[310249201,1704421838831,-156.45,0.00028979,2]
[310249202,1704421838840,-129007.34190617,0.00029,2]
[310249203,1704421838849,-300.0,0.00029,3]
[310249204,1704421838858,-498.35,0.00029162,2]
[310249205,1704421838867,-156.45,0.00029225,2]
[310249206,1704421838876,-311.66,0.00029384,2]
[310249207,1704421838885,-156.45,0.0002947,2]
[310249208,1704421838895,-184.96,0.0002956,2]
[310249209,1704421838905,-150.0,0.00029688,2]
[310249210,1704421838914,-190.29143624,0.000297,4]
[310249211,1704421838923,-156.45,0.00029716,2]
[310249212,1704421838933,-815.04,0.00029736,2]
[310249213,1704421838943,-500.0,0.00029763,2]
[310249215,1704421839142,-150.0,0.00029771,2]
[310249216,1704421839152,-269.18837622,0.00029797,2]
[310249217,1704421839162,-12826.08102487,0.00029798,2]
[310249218,1704421839173,-219.41014486,0.00029798,2]
[310249219,1704421839182,-7819.3772867,0.00029798,2]
[310249220,1704421839194,-3765.5833606,0.00029798,2]
[310249221,1704421839203,-63547.03180563,0.00029798,2]
[310249222,1704421839218,-44276.31424347,0.00029798,2]
[310249223,1704421839227,-248.2903359,0.00029799,2]
[310249224,1704421839236,-3941.75891139,0.00029799,2]
[310249225,1704421839245,-269.76999987,0.00029799,2]
[310249226,1704421839255,-3902.68475495,0.00029799,2]
[310249227,1704421839264,-150.01,0.00029799,2]
[310249228,1704421839274,-214.92658503,0.00029799,2]
[310249229,1704421839283,-200.21979921,0.00029799,2]
[310249230,1704421839292,-3286.93466783,0.00029799,2]
[310249231,1704421839301,-629211.64460851,0.000298,2]
[310249232,1704421839313,-152799.52696584,0.000298,2]
[310249233,1704421839322,-1528.141427,0.000298,2]
[310249234,1704421839331,-858.745796,0.000298,2]
[310249235,1704421839343,-59956.62373189,0.000299,2]
[310249236,1704421839353,-2296.63418826,0.0002996,2]
[310249237,1704421839361,-291.91852497,0.0003,2]
[310249238,1704421839370,-9594.18908289,0.0003,2]
[310249239,1704421839380,-155.0,0.0003,2]
[310249240,1704421839389,-172.56117744,0.0003,4]
[310249241,1704421839398,-18932.4699302,0.0003,4]
[310249242,1704421839406,-2545.20907671,0.0003,4]
[310249243,1704421839416,-2726.15804013,0.0003,2]
[310249244,1704421839425,-329.76572197,0.0003,4]
[310249245,1704421839434,-1000.0,0.0003,2]
[310249246,1704421839444,-200.0,0.0003,2]
[310249247,1704421839453,-3000.0,0.0003,2]
[310249248,1704421839462,-1369.66,0.0003,14]
[310249249,1704421839471,-201.0,0.0003,2]
[310249250,1704421839481,-395.24318517,0.000301,2]
[310249251,1704421839490,-222.0,0.00030133,2]
[310249252,1704421839499,-10000.0,0.00030137,2]
[310249253,1704421839508,-153.84,0.00030137,2]
[310249254,1704421839517,-155.0,0.00030137,2]
[310249255,1704421839527,-498.35,0.0003014,2]
[310249256,1704421839537,-153.08464517,0.00030299,2]
[310249257,1704421839546,-500.0,0.00030977,2]
[310249258,1704421839556,-1030.33261518,0.00031,2]
[310249259,1704421839566,-350.0,0.00031,3]
[310249260,1704421839575,-153.84,0.0003105,2]
[310249261,1704421839585,-5044.90501324,0.00031115,2]
[310249262,1704421839596,-498.35,0.00031119,2]
[310249263,1704421839605,-18077.592,0.00031176,2]
[310249264,1704421839615,-667.494,0.00031176,2]
[310249265,1704421839625,-833.0,0.00031176,2]
[310249266,1704421839634,-1928.784,0.00031176,2]
[310249267,1704421839644,-1149.472,0.00031176,2]
[310249268,1704421839653,-197.36,0.00031176,2]
[310249269,1704421839663,-1009.0,0.000314,2]
[310249270,1704421839672,-204.67,0.00031507,2]
[310249271,1704421839681,-155.0,0.00031507,2]
[310249272,1704421839691,-503.30004599,0.00031574,2]
[310249273,1704421839700,-311.66,0.00031647,2]
[310249274,1704421839709,-140477.573841,0.000318,3]
[310249275,1704421839718,-163.73,0.000318,2]
[310249276,1704421839728,-150.0,0.00031895,2]
[310249277,1704421839737,-200.998,0.00031895,2]
[310249278,1704421839747,-154.14359683,0.000319,2]
[310249279,1704421839757,-154.14359681,0.000319,2]
[310249280,1704421839767,-154.14359681,0.000319,2]
[310249281,1704421839776,-154.14359681,0.000319,2]
[310249282,1704421839786,-154.14359681,0.000319,2]
[310249283,1704421839796,-154.14359681,0.000319,2]
[310249284,1704421839805,-154.14359681,0.000319,2]
[310249285,1704421839814,-153.84,0.00031963,2]
[310249286,1704421839825,-179.82017932,0.00032,4]
[310249287,1704421839835,-6097.5995,0.00032,4]
[310249288,1704421839844,-1000.0,0.00032,5]
[310249289,1704421839854,-203.31174993,0.00032,2]
[310249290,1704421839863,-203.31174993,0.00032,2]
[310249291,1704421839872,-203.31174993,0.00032,2]
[310249292,1704421839881,-159.42146552,0.00032,2]
[310249293,1704421839890,-498.35,0.00032097,2]
[310249294,1704421839900,-154.14359681,0.00032167,2]
[310249295,1704421839911,-500.0,0.00032192,2]
[310249296,1704421839923,-500.0,0.0003245,2]
[310249297,1704421839933,-12576.59628433,0.00032483,2]
[310249298,1704421839944,-16460.80633083,0.000325,2]
[310249299,1704421839955,-815.04,0.00032709,2]
[310249300,1704421839965,-184.96,0.00032844,2]
[310249301,1704421839974,-282.73497521,0.00032876,2]
[310249302,1704421839984,-216.28993255,0.00032876,2]
[310249303,1704421839994,-153.84,0.00032877,2]
[310249304,1704421840003,-184.92,0.00032877,15]
[310249305,1704421840013,-51825.12,0.00032877,2]
[310249306,1704421840022,-36911.25,0.00032877,2]